fUST/lending_fUST_20250802
["ID","MTS","AMOUNT","RATE_DAILY","PERIOD"]
[376825477,1754134153218,-37879.9447328,0.0002399,2]
[376825478,1754134156608,5000.0,0.00023951,2]
[376825479,1754134159116,-7864.03521148,0.0002399,2]
[376825480,1754134165309,400.0,0.00024658,120]
[376825481,1754134165735,400.0,0.00027397,120]
[376825482,1754134167026,500.0,0.00023565,2]
[376825485,1754134172394,5000.0,0.00023951,2]
[376825487,1754134175772,303.37622889,0.000239,2]
[376825488,1754134193287,192.24,0.00023713,2]
[376825489,1754134195943,8617.7791659,0.00023161,2]
[376825490,1754134195968,1151.2492251,0.00023161,2]
[376825495,1754134205453,366.0,0.00027401,60]
[376825496,1754134209160,364.0,0.00027419,60]
[376825497,1754134209587,364.0,0.00027419,60]
[376825498,1754134210998,892.0,0.00027419,60]
[376825499,1754134211355,891.0,0.00027419,60]
[376825500,1754134211665,891.0,0.00027419,60]
[376825501,1754134212015,891.0,0.00027419,60]
[376825502,1754134212397,891.0,0.00027419,60]
[376825503,1754134212835,891.0,0.00027419,60]
[376825508,1754134230770,200.0,0.00026193,120]
[376825532,1754134232468,-1840.0,0.00023969,2]
[376825534,1754134232479,-300.0,0.00023989,2]
[376825536,1754134232493,-1200.0,0.00023989,2]
[376825538,1754134232503,-300.0,0.00023989,2]
[376825540,1754134232513,-300.0,0.00023989,2]
[376825541,1754134232523,-300.0,0.00023989,2]
[376825543,1754134232533,-300.0,0.00023989,2]
[376825545,1754134232542,-2887.38074131,0.0002399,2]
[376825548,1754134232553,-355.72495,0.0002399,2]
[376825550,1754134232566,-456.47960642,0.0002399,2]
[376825552,1754134232577,-1140.57779886,0.0002399,2]
[376825567,1754134238543,-49415.85695913,0.0002399,2]
[376825568,1754134238555,-156.0,0.00024,2]
[376825569,1754134238570,-1200.0,0.0002415,2]
[376825570,1754134238583,-50000.0,0.0002415,2]
[376825571,1754134238595,-151.215,0.00024172,6]
[376825572,1754134238606,-500.0,0.00024173,2]
[376825573,1754134238617,-500.0,0.00024173,2]
[376825574,1754134238629,-501.03740505,0.00024173,2]
[376825575,1754134238640,-500.70695849,0.00024173,2]
[376825576,1754134238652,-501.55322601,0.00024173,2]
[376825577,1754134238664,-501.7862434,0.00024173,2]
[376825578,1754134238675,-500.0,0.00024173,2]
[376825579,1754134238686,-500.0,0.00024173,2]
[376825580,1754134238697,-192.24,0.00024176,2]
[376825581,1754134238707,-596.88925025,0.000242,2]
[376825582,1754134238719,-590.54686274,0.000242,2]
[376825583,1754134238730,-966.6,0.000242,7]
[376825584,1754134238741,-303.37622888,0.00024225,2]
[376825585,1754134238753,-200.0,0.00024469,15]
[376825586,1754134238764,-200.0,0.00024469,15]
[376825587,1754134238775,-200.0,0.00024469,15]
[376825588,1754134238785,-200.0,0.00024469,15]
[376825589,1754134238796,-200.0,0.00024469,15]
[376825590,1754134238807,-2030.296672,0.00024481,2]
[376825591,1754134238818,-2105.41764886,0.00024536,2]
[376825592,1754134238829,-303.37622888,0.0002455,2]
[376825593,1754134238839,-9275.8394821,0.00024556,2]
[376825594,1754134238850,-150.0,0.00024587,2]
[376825595,1754134238861,-2183.31810187,0.00024591,2]
[376825596,1754134238872,-500.0,0.00024599,2]
[376825597,1754134238883,-218.8421865,0.00024599,2]
[376825598,1754134238894,-1003.49836903,0.00024599,2]
[376825599,1754134238905,-1003.49836903,0.00024599,2]
[376825600,1754134238915,-574.04736948,0.00024599,2]
[376825601,1754134238926,-1003.49836903,0.00024599,2]
[376825602,1754134238938,-1003.49836903,0.00024599,2]
[376825603,1754134238948,-1003.49836903,0.00024599,2]
[376825604,1754134238960,-1003.49836903,0.00024599,2]
[376825605,1754134238971,-1003.49836903,0.00024599,2]
[376825606,1754134238981,-1003.49836903,0.00024599,2]
[376825607,1754134238992,-1003.49836903,0.00024599,2]
[376825608,1754134239003,-1003.49836903,0.00024599,2]
[376825609,1754134239016,-1003.49836903,0.00024599,2]
[376825610,1754134239027,-1003.49836903,0.00024599,2]
[376825611,1754134239038,-1003.49836903,0.00024599,2]
[376825612,1754134239048,-1003.49836903,0.00024599,2]
[376825613,1754134239059,-1003.49836903,0.00024599,2]
[376825614,1754134239070,-1003.49836903,0.00024599,2]
[376825615,1754134239081,-1003.49836903,0.00024599,2]
[376825616,1754134239091,-1003.49836903,0.00024599,2]
[376825617,1754134239102,-1003.49836903,0.00024599,2]
[376825618,1754134239112,-1003.49836903,0.00024599,2]
[376825619,1754134239124,-1003.49836903,0.00024599,2]
[376825620,1754134239134,-1003.49836903,0.00024599,2]
[376825621,1754134239145,-1003.49836903,0.00024599,2]
[376825622,1754134239156,-1003.49836903,0.00024599,2]
[376825623,1754134239168,-1003.49836903,0.00024599,2]
[376825624,1754134239180,-1003.49836903,0.00024599,2]
[376825625,1754134239191,-1003.49836903,0.00024599,2]
[376825626,1754134239202,-1003.49836903,0.00024599,2]
[376825627,1754134239213,-1003.49836903,0.00024599,2]
[376825628,1754134239224,-1003.49836903,0.00024599,2]
[376825629,1754134239234,-1003.49836903,0.00024599,2]
[376825630,1754134239244,-1003.49836903,0.00024599,2]
[376825631,1754134239254,-1003.49836903,0.00024599,2]
[376825632,1754134239263,-1003.49836903,0.00024599,2]
[376825633,1754134239418,-1003.49836903,0.00024599,2]
[376825634,1754134239433,-1003.49836903,0.00024599,2]
[376825635,1754134239443,-1003.49836903,0.00024599,2]
[376825636,1754134239452,-1003.49836903,0.00024599,2]
[376825637,1754134239462,-1003.49836903,0.00024599,2]
[376825638,1754134239471,-1003.49836903,0.00024599,2]
[376825639,1754134239482,-1003.49836903,0.00024599,2]
[376825640,1754134239495,-1003.49836903,0.00024599,2]
[376825641,1754134239504,-1003.49836903,0.00024599,2]
[376825642,1754134239513,-1003.49836903,0.00024599,2]
[376825643,1754134239523,-1003.49836903,0.00024599,2]
[376825644,1754134239533,-1003.49836903,0.00024599,2]
[376825645,1754134239542,-1003.49836903,0.00024599,2]
[376825646,1754134239552,-1003.49836903,0.00024599,2]
[376825647,1754134239563,-1003.49836903,0.00024599,2]
[376825648,1754134239572,-1003.49836903,0.00024599,2]
[376825649,1754134239581,-1003.49836903,0.00024599,2]
[376825650,1754134239590,-10500.98352308,0.000246,2]
[376825651,1754134239599,-192.24,0.0002464,2]
[376825652,1754134239610,-2264.10087164,0.00024646,2]
[376825653,1754134239619,-160523.11525738,0.0002465,2]
[376825654,1754134239629,-503.07957315,0.0002465,2]
[376825655,1754134239638,-500.0,0.00024673,2]
[376825656,1754134239649,-500.0,0.00024673,2]
[376825657,1754134239658,-500.33812626,0.00024673,2]
[376825658,1754134239667,-2347.87260389,0.00024701,2]
[376825659,1754134239676,-1000.0,0.00024721,2]
[376825660,1754134239685,-2434.74389024,0.00024756,2]
[376825661,1754134239695,-500.0,0.00024774,2]
[376825662,1754134239703,-16475.30046257,0.00024774,2]
[376825663,1754134239713,-442.95976693,0.00024774,2]
[376825664,1754134239722,-12698.75,0.00024775,2]
[376825665,1754134239731,-26372.3498501,0.00024776,2]
[376825666,1754134239741,-6104.0843308,0.000248,2]
[376825667,1754134239750,-23326.3943891,0.000248,2]
[376825668,1754134239759,-39580.96,0.000248,2]
[376825669,1754134239768,-2524.82941417,0.00024811,2]
[376825670,1754134239777,-376.93963465,0.00024859,2]
[376825671,1754134239786,-2691.4323992,0.00024866,2]
[376825672,1754134239795,-606.08836267,0.00024895,2]
[376825673,1754134239806,-3118.33321448,0.000249,2]
[376825674,1754134239816,-90372.4825554,0.000249,2]
[376825675,1754134239827,-875.23460737,0.00024905,2]
[376825676,1754134239835,-17130.42759895,0.0002491,2]
[376825677,1754134239845,-492.37,0.00024945,2]
[376825678,1754134239854,-3110.19002937,0.0002495,2]
[376825679,1754134239864,-90372.4825554,0.00024965,2]
[376825681,1754134239873,-6104.0843308,0.00024965,2]
[376825682,1754134239882,-500.0,0.00024973,2]
[376825683,1754134239890,-500.0,0.00024973,2]
[376825684,1754134239899,-486.43131281,0.00024973,2]
[376825685,1754134239909,-355.713762,0.00024973,2]
[376825686,1754134239917,-504.30457904,0.00024973,2]
[376825687,1754134239927,-225.19716048,0.00024973,2]
[376825688,1754134239937,-500.0,0.00024973,2]
[376825689,1754134239947,-500.0,0.00024973,2]
[376825690,1754134239956,-500.0,0.00024973,2]
[376825691,1754134239965,-500.68687041,0.00024973,2]
[376825692,1754134239974,-630.55870686,0.00024973,2]
[376825693,1754134239983,-500.0,0.00024973,2]
[376825694,1754134239992,-500.0,0.00024973,2]
[376825695,1754134240002,-500.0,0.00024973,2]
[376825696,1754134240011,-500.0,0.00024975,2]
[376825697,1754134240021,-405.10140509,0.00024975,2]
[376825698,1754134240031,-151.0,0.00024975,2]
[376825699,1754134240040,-151.0,0.00024975,2]
[376825700,1754134240050,-151.0,0.00024975,2]
[376825701,1754134240060,-500.0,0.00024975,2]
[376825702,1754134240069,-151.0,0.00024975,2]
[376825703,1754134240078,-500.0,0.00024975,2]
[376825704,1754134240088,-151.0,0.00024975,2]
[376825705,1754134240097,-151.0,0.00024975,2]
[376825706,1754134240107,-500.0,0.00024975,2]
[376825707,1754134240116,-151.0,0.00024975,2]
[376825708,1754134240126,-151.0,0.00024975,2]
[376825709,1754134240136,-500.0,0.00024975,2]
[376825710,1754134240145,-151.0,0.00024975,2]
[376825711,1754134240155,-151.0,0.00024975,2]
[376825712,1754134240164,-246.28836952,0.00024975,2]
[376825713,1754134240173,-151.0,0.00024975,2]
[376825714,1754134240182,-151.0,0.00024975,2]
[376825716,1754134240191,-151.0,0.00024975,2]
[376825718,1754134240200,-151.0,0.00024975,2]
[376825720,1754134240210,-151.0,0.00024975,2]
[376825722,1754134240219,-151.0,0.00024975,2]
[376825724,1754134240228,-151.0,0.00024975,2]
[376825726,1754134240240,-151.0,0.00024975,2]
[376825728,1754134240250,-151.0,0.00024975,2]
[376825730,1754134240259,-151.0,0.00024975,2]
[376825732,1754134240268,-151.0,0.00024975,2]
[376825734,1754134240277,-151.0,0.00024975,2]
[376825736,1754134240286,-151.0,0.00024975,2]
[376825738,1754134240295,-151.0,0.00024975,2]
[376825740,1754134240304,-151.0,0.00024975,2]
[376825742,1754134240313,-151.0,0.00024975,2]
[376825744,1754134240322,-151.0,0.00024975,2]
[376825746,1754134240331,-152.89388442,0.00024975,2]
[376825748,1754134240340,-151.0,0.00024975,2]
[376825750,1754134240349,-151.0,0.00024975,2]
[376825752,1754134240358,-151.0,0.00024975,2]
[376825754,1754134240368,-151.0,0.00024975,2]
[376825756,1754134240377,-151.0,0.00024975,2]
[376825759,1754134240387,-151.0,0.00024975,2]
[376825761,1754134240397,-151.0,0.00024975,2]
[376825763,1754134240407,-151.0,0.00024975,2]
[376825765,1754134240416,-151.0,0.00024975,2]
[376825767,1754134240425,-151.0,0.00024975,2]
[376825769,1754134240434,-151.0,0.00024975,2]
[376825771,1754134240443,-226.3786932,0.00024975,2]
[376825773,1754134240453,-151.0,0.00024975,2]
[376825775,1754134240462,-151.0,0.00024975,2]
[376825776,1754134240471,-151.0,0.00024975,2]
[376825779,1754134240483,-151.0,0.00024975,2]
[376825780,1754134240495,-151.0,0.00024975,2]
[376825782,1754134240504,-151.0,0.00024975,2]
[376825784,1754134240514,-151.0,0.00024975,2]
[376825786,1754134240523,-151.0,0.00024975,2]
[376825789,1754134240535,-151.0,0.00024975,2]
[376825791,1754134240545,-151.0,0.00024975,2]
[376825792,1754134240554,-151.0,0.00024975,2]
[376825795,1754134240565,-151.0,0.00024975,2]
[376825797,1754134240575,-151.0,0.00024975,2]
[376825798,1754134240585,-151.0,0.00024975,2]
[376825801,1754134240595,-180744.965111,0.00024978,2]
[376825803,1754134240604,-12208.1686616,0.00024978,2]
[376825805,1754134240614,-90372.4825554,0.0002498,2]
[376825806,1754134240624,-12208.1686616,0.0002498,2]
[376825808,1754134240633,-1064.82660165,0.00025,2]
[376825811,1754134240643,-16017.14690967,0.00025,2]
[376825812,1754134240652,-2621.93889496,0.00025,2]
[376825814,1754134240661,-170406.13245383,0.00025,4]
[376825817,1754134240671,-207.91408441,0.00025,2]
[376825818,1754134240680,-10364.0,0.00025,2]
[376825821,1754134240690,-358.94697839,0.00025,2]
[376825823,1754134240701,-30432.68289876,0.00025,2]
[376825825,1754134240710,-500.0,0.00025,2]
[376825827,1754134240719,-120000.0,0.00025,2]
[376825829,1754134240730,-600.0,0.00025,2]
[376825831,1754134240739,-192.24,0.00025,7]
[376825833,1754134240748,-500.0,0.00025048,2]
[376825835,1754134240757,-1000.0,0.00025221,2]
[376825837,1754134240766,-500.0,0.00025268,2]
[376825839,1754134240776,-500.0,0.00025307,2]
[376825841,1754134240785,-500.0,0.00025308,2]
[376825843,1754134240794,-500.0,0.00025322,2]
[376825845,1754134240803,-635.0,0.00025333,2]
[376825847,1754134240812,-970.0,0.00025333,2]
[376825849,1754134240822,-407.0,0.00025333,2]
[376825851,1754134240831,-500.0,0.00025348,2]
[376825853,1754134240840,-3118.33321446,0.00025362,2]
[376825855,1754134240849,-757.73,0.00025363,3]
[376825857,1754134240858,-12208.1686616,0.00025363,2]
[376825858,1754134240867,-500.0,0.00025364,2]
[376825859,1754134240876,-501.04450038,0.00025373,2]
[376825860,1754134240885,-500.0,0.00025373,2]
[376825861,1754134240894,-500.0,0.00025384,2]
[376825862,1754134240903,-700.0,0.00025406,2]
[376825863,1754134240912,-700.0,0.00025411,2]
[376825864,1754134240921,-500.0,0.0002547,2]
[376825865,1754134240930,-16300.35242674,0.0002547,2]
[376825866,1754134240939,-500.0,0.00025485,2]
[376825867,1754134240948,-151.0,0.000255,19]
[376825868,1754134240957,-1000.0,0.000255,2]
[376825869,1754134240967,-600.0,0.00025504,2]
[376825870,1754134240975,-410.92394306,0.00025521,2]
[376825872,1754134240985,-1062.55105986,0.00025521,2]
[376825873,1754134240995,-1007.44602392,0.00025521,2]
[376825874,1754134241005,-1000.0,0.00025521,2]
[376825875,1754134241015,-1000.0,0.00025521,2]
[376825877,1754134241025,-151.65093557,0.00025523,2]
[376825879,1754134241034,-500.0,0.00025547,2]
[376825882,1754134241044,-600.0,0.0002556,2]
[376825883,1754134241053,-500.0,0.00025561,2]
[376825886,1754134241064,-600.0,0.00025562,2]
[376825887,1754134241073,-192.24,0.00025566,7]
[376825889,1754134241082,-600.0,0.00025577,2]
[376825891,1754134241091,-700.0,0.00025595,2]
[376825893,1754134241101,-868.26355556,0.0002561,3]
[376825895,1754134241110,-600.0,0.00025635,2]
[376825897,1754134241119,-500.0,0.0002564,2]
[376825899,1754134241128,-160.12652983,0.00025644,2]
[376825901,1754134241137,-500.0,0.00025669,2]
[376825903,1754134241146,-1507.75853861,0.00025697,2]
[376825905,1754134241155,-151.0,0.000257,19]
[376825907,1754134241164,-24416.3373232,0.000257,2]
[376825909,1754134241173,-500.0,0.00025709,2]
[376825911,1754134241183,-252.57,0.0002571,3]
[376825913,1754134241191,-501.18544269,0.00025773,2]
[376825915,1754134241201,-500.0,0.00025773,2]
[376825917,1754134241210,-503.75135031,0.00025773,2]
[376825919,1754134241219,-501.54812874,0.00025773,2]
[376825921,1754134241229,-500.0,0.00025773,2]
[376825923,1754134241238,-150.0,0.00025773,2]
[376825925,1754134241247,-500.0,0.00025773,2]
[376825927,1754134241257,-200.0,0.00025773,2]
[376825929,1754134241266,-500.0,0.00025793,2]
[376825931,1754134241275,-151.0,0.000258,17]
[376825933,1754134241284,-966.6,0.000258,7]
[376825935,1754134241293,-6104.0843308,0.00025814,2]
[376825937,1754134241302,-3118.33321446,0.00025825,2]
[376825939,1754134241311,-700.0,0.00025828,2]
[376825941,1754134241319,-17130.42759895,0.0002583,2]
[376825943,1754134241328,-700.0,0.00025832,2]
[376825945,1754134241337,-600.0,0.00025863,2]
[376825947,1754134241346,-600.0,0.00025912,2]
[376825949,1754134241355,-700.0,0.00025946,2]
[376825951,1754134241364,-700.0,0.00025969,2]
[376825953,1754134241373,-18312.2529924,0.0002597,2]
[376825955,1754134241382,-500.0,0.00025973,2]
[376825957,1754134241391,-150.0,0.00025973,2]
[376825959,1754134241401,-500.0,0.00025975,2]
[376825961,1754134241410,-500.0,0.0002598,2]
[376825963,1754134241420,-6104.0843308,0.0002599,2]
[376825965,1754134241429,-160.12652983,0.00026,2]
[376825967,1754134241439,-151.0,0.00026,14]
[376825969,1754134241448,-37777.17958015,0.00026,2]
[376825971,1754134241457,-519.6016172,0.00026,2]
[376825973,1754134241467,-19900.0,0.00026,2]
[376825975,1754134241475,-75737.47532905,0.00026,2]
[376825978,1754134241498,-339.49739257,0.00026,2]
[376825980,1754134241513,-123977.50985488,0.00026,2]
[376825982,1754134241522,-1885.22464919,0.00026,2]
[376825984,1754134241533,-160.0,0.00026,2]
[376825986,1754134241543,-600.0,0.00026012,2]
[376825988,1754134241552,-406.0,0.00026015,2]
[376825990,1754134241562,-313.0,0.00026015,2]
[376825992,1754134241570,-300.0,0.00026015,2]
[376825994,1754134241580,-420.0,0.00026015,2]
[376825996,1754134241589,-958.99700825,0.0002602,2]
[376825998,1754134241598,-195.15987768,0.0002602,2]
[376826000,1754134241607,-156.824267,0.00026024,2]
[376826002,1754134241616,-192.24,0.00026029,7]
[376826004,1754134241625,-190.0,0.00026038,2]
[376826006,1754134241635,-700.0,0.00026046,2]
[376826008,1754134241643,-500.0,0.00026053,2]
[376826010,1754134241653,-700.0,0.00026053,2]
[376826012,1754134241662,-1500.0,0.00026068,2]
[376826014,1754134241670,-1500.0,0.00026068,2]
[376826016,1754134241680,-500.0,0.00026077,2]
[376826018,1754134241689,-2424.35345068,0.0002608,2]
[376826020,1754134241698,-700.0,0.0002608,2]
[376826022,1754134241707,-501.44784454,0.000261,2]
[376826024,1754134241716,-1680.0,0.00026134,2]
[376826026,1754134241724,-12698.75,0.00026145,4]
[376826028,1754134241734,-500.0,0.00026155,2]
[376826030,1754134241743,-600.0,0.00026158,2]
[376826032,1754134241751,-190.90177104,0.0002616,2]
[376826034,1754134241760,-700.0,0.00026163,2]
[376826036,1754134241769,-600.0,0.00026168,2]
[376826038,1754134241776,-710.0,0.00026185,2]
[376826040,1754134241783,-500.0,0.00026185,2]
[376826042,1754134241792,-500.0,0.00026192,2]
[376826044,1754134241802,-151.0,0.000262,13]
[376826046,1754134241811,-700.0,0.00026207,2]
[376826048,1754134241820,-500.0,0.00026218,2]
[376826050,1754134241829,-586.32243285,0.00026252,16]
[376826052,1754134241838,-600.0,0.00026286,2]
[376826053,1754134241847,-3118.33321446,0.00026287,2]
[376826055,1754134241856,-600.0,0.00026293,2]
[376826057,1754134241865,-39580.96,0.000263,2]
[376826059,1754134241874,-700.0,0.00026315,2]
[376826061,1754134241883,-1130.91696015,0.00026321,2]
[376826063,1754134241892,-301.5166519,0.00026321,2]
[376826065,1754134241902,-600.0,0.00026321,2]
[376826067,1754134241911,-160.12652983,0.00026329,2]
[376826069,1754134241921,-500.0,0.00026348,2]
[376826071,1754134241929,-600.0,0.00026354,2]
[376826073,1754134241939,-700.0,0.00026356,2]
[376826075,1754134241949,-600.0,0.00026358,2]
[376826077,1754134241959,-700.0,0.00026374,2]
[376826079,1754134241969,-700.0,0.0002639,2]
[376826081,1754134241980,-492.37,0.00026394,2]
[376826083,1754134241991,-151.0,0.000264,11]
[376826085,1754134242002,-151.0,0.000264,20]
[376826087,1754134242012,-509.28022222,0.00026438,2]
[376826099,1754134242120,-6104.0843308,0.00026439,2]
[376826101,1754134242130,-700.0,0.00026449,2]
[376826103,1754134242139,-500.0,0.00026456,2]
[376826105,1754134242149,-192.24,0.00026492,7]
[376826107,1754134242158,-151.0,0.000265,15]
[376826109,1754134242167,-635.60279889,0.000265,2]
[376826111,1754134242176,-250.0,0.00026521,2]
[376826113,1754134242185,-700.0,0.00026531,2]
[376826115,1754134242194,-3392.45671188,0.00026536,2]
[376826117,1754134242203,-700.0,0.00026544,2]
[376826119,1754134242212,-260.0,0.00026548,2]
[376826121,1754134242222,-151.0,0.00026576,2]
[376826123,1754134242233,-151.0,0.00026576,2]
[376826125,1754134242242,-151.0,0.00026576,2]
[376826127,1754134242251,-151.0,0.00026576,2]
[376826129,1754134242260,-500.0,0.00026576,2]
[376826130,1754134242269,-151.0,0.00026576,2]
[376826132,1754134242278,-151.0,0.00026576,2]
[376826134,1754134242287,-472.0,0.00026576,2]
[376826136,1754134242296,-221.92136843,0.00026576,2]
[376826138,1754134242306,-151.0,0.00026576,2]
[376826140,1754134242315,-151.0,0.00026576,2]
[376826142,1754134242325,-151.0,0.00026576,2]
[376826144,1754134242334,-151.28301336,0.00026576,2]
[376826146,1754134242342,-151.24078544,0.00026576,2]
[376826148,1754134242351,-151.0,0.00026576,2]
[376826150,1754134242360,-151.0,0.00026576,2]
[376826152,1754134242369,-151.0,0.00026576,2]
[376826154,1754134242378,-238.18230373,0.00026576,2]
[376826156,1754134242387,-500.0,0.00026576,2]
[376826158,1754134242397,-151.0,0.000266,15]
[376826160,1754134242406,-151.0,0.000266,14]
[376826161,1754134242415,-700.0,0.00026611,2]
[376826163,1754134242425,-509.14387867,0.00026616,2]
[376826165,1754134242434,-2000.0,0.00026616,2]
[376826167,1754134242443,-500.0,0.00026638,2]
[376826169,1754134242453,-170.4289651,0.0002665,2]
[376826171,1754134242462,-500.0,0.00026651,2]
[376826173,1754134242471,-700.0,0.00026655,2]
[376826175,1754134242483,-600.0,0.00026658,2]
[376826177,1754134242494,-193.265049,0.00026676,2]
[376826179,1754134242503,-160.12652983,0.00026685,2]
[376826181,1754134242513,-151.0,0.000267,10]
[376826183,1754134242523,-156.824267,0.00026708,2]
[376826185,1754134242534,-156.824267,0.00026708,3]
[376826187,1754134242543,-12208.1686616,0.00026739,2]
[376826189,1754134242552,-3733.68818259,0.00026749,2]
[376826191,1754134242563,-3118.33321446,0.00026749,2]
[376826193,1754134242572,-17130.42759895,0.00026749,2]
[376826195,1754134242582,-228119.77269248,0.00026749,2]
[376826197,1754134242591,-700.0,0.0002675,2]
[376826199,1754134242600,-1754.32884207,0.000268,3]
[376826201,1754134242609,-700.0,0.00026807,2]
[376826202,1754134242618,-150.0,0.00026822,2]
[376826204,1754134242627,-200.0,0.00026843,15]
[376826206,1754134242636,-200.0,0.00026843,15]
[376826208,1754134242646,-200.0,0.00026843,15]
[376826210,1754134242655,-200.0,0.00026843,15]
[376826212,1754134242664,-200.0,0.00026843,15]
[376826214,1754134242674,-200.0,0.00026843,15]
[376826216,1754134242683,-200.0,0.00026843,15]
[376826218,1754134242692,-162.07,0.00026848,2]
[376826220,1754134242701,-3559.44019133,0.00026849,2]
[376826222,1754134242710,-460.0,0.00026849,10]
[376826224,1754134242719,-460.0,0.00026849,10]
[376826226,1754134242728,-460.0,0.00026849,10]
[376826228,1754134242741,-460.0,0.00026849,10]
[376826230,1754134242750,-460.0,0.00026849,10]
[376826232,1754134242759,-500.0,0.00026849,10]
[376826234,1754134242768,-460.0,0.00026849,10]
[376826236,1754134242777,-460.0,0.00026849,10]
[376826238,1754134242787,-460.0,0.00026849,10]
[376826240,1754134242795,-460.0,0.00026849,10]
[376826242,1754134242804,-460.0,0.00026849,10]
[376826243,1754134242814,-460.0,0.00026849,10]
[376826245,1754134242823,-460.0,0.00026849,10]
[376826247,1754134242832,-460.0,0.00026849,10]
[376826249,1754134242841,-460.0,0.00026849,10]
[376826251,1754134242850,-460.0,0.00026849,10]
[376826253,1754134242859,-500.0,0.00026849,10]
[376826255,1754134242868,-460.0,0.00026849,10]
[376826257,1754134242877,-460.0,0.00026849,10]
[376826260,1754134242886,-468.43207733,0.00026849,10]
[376826263,1754134242895,-460.0,0.00026849,10]
[376826265,1754134242904,-460.0,0.00026849,10]
[376826267,1754134242913,-460.0,0.00026849,10]
[376826269,1754134242922,-460.0,0.00026849,10]
[376826270,1754134242931,-460.0,0.00026849,10]
[376826274,1754134242940,-460.0,0.00026849,10]
[376826278,1754134242949,-460.0,0.00026849,10]
[376826282,1754134242958,-470.72057866,0.00026849,10]
[376826287,1754134242967,-460.0,0.00026849,10]
[376826291,1754134242976,-233.92515939,0.00026849,10]
[376826294,1754134242988,-462.09983557,0.00026849,10]
[376826296,1754134242997,-505.42577883,0.00026849,10]
[376826298,1754134243006,-460.0,0.00026849,10]
[376826300,1754134243015,-460.0,0.00026849,10]
[376826303,1754134243024,-460.0,0.00026849,10]
[376826305,1754134243034,-460.0,0.00026849,10]
[376826307,1754134243043,-460.0,0.00026849,10]
[376826310,1754134243052,-460.0,0.00026849,10]
[376826313,1754134243061,-460.0,0.00026849,10]
[376826315,1754134243071,-460.0,0.00026849,10]
[376826317,1754134243080,-460.0,0.00026849,10]
[376826319,1754134243089,-460.0,0.00026849,10]
[376826320,1754134243099,-460.0,0.00026849,10]
[376826322,1754134243108,-460.0,0.00026849,10]
[376826324,1754134243117,-460.0,0.00026849,10]
[376826326,1754134243126,-460.0,0.00026849,10]
[376826328,1754134243135,-460.0,0.00026849,10]
[376826330,1754134243146,-460.0,0.00026849,10]
[376826332,1754134243155,-467.6544466,0.00026849,10]
[376826334,1754134243164,-460.0,0.00026849,10]
[376826336,1754134243173,-460.0,0.00026849,10]
[376826338,1754134243182,-460.0,0.00026849,10]
[376826340,1754134243191,-460.0,0.00026849,10]
[376826342,1754134243200,-306.41489574,0.00026849,10]
[376826343,1754134243209,-179.98915129,0.00026849,10]
[376826345,1754134243218,-460.0,0.00026849,10]
[376826347,1754134243227,-461.81689475,0.00026849,10]
[376826349,1754134243237,-462.32976446,0.00026849,10]
[376826351,1754134243246,-460.0,0.00026849,10]
[376826353,1754134243255,-460.0,0.00026849,10]
[376826355,1754134243264,-460.0,0.00026849,10]
[376826357,1754134243273,-460.0,0.00026849,10]
[376826359,1754134243282,-295.71078926,0.00026849,10]
[376826361,1754134243291,-487.64214593,0.00026849,10]